bitfinex/quotes_BTCUSD_20250607
["timestamp","ask_amount","ask_price","bid_price","bid_amount"]
[1749308896445,0.01897105,105640.0,105630.0,0.7246606]
[1749308896675,0.02843662,105640.0,105630.0,0.7246606]
[1749308896910,0.02843662,105640.0,105630.0,1.42424706]
[1749308896911,0.01897087,105640.0,105630.0,1.42424706]
[1749308897164,0.02843653,105640.0,105630.0,1.42424705]
[1749308897407,0.02843653,105640.0,105630.0,1.42624705]
[1749308898088,4e-05,105640.0,105630.0,1.83029751]
[1749308898294,4e-05,105640.0,105630.0,1.42624704]
[1749308898499,4e-05,105640.0,105630.0,1.8302975]
[1749308898709,0.0095053,105640.0,105630.0,1.83029749]
[1749308898909,0.01897078,105640.0,105630.0,1.42724703]
[1749308899141,0.20829381,105640.0,105630.0,0.88320116]
[1749308899377,0.20829381,105640.0,105630.0,1.28037489]
[1749308899627,0.01897159,105640.0,105630.0,1.28984144]
[1749308899791,0.01897159,105640.0,105630.0,1.32980781]
[1749308900529,0.21775992,105640.0,105630.0,0.93263488]
[1749308900760,0.0284377,105640.0,105630.0,1.31464798]
[1749308900975,0.01897159,105640.0,105630.0,1.33931436]
[1749308902683,0.02843761,105640.0,105630.0,1.32411436]
[1749308902890,0.02843761,105640.0,105630.0,1.32411435]
[1749308903320,0.02843761,105640.0,105630.0,1.30881435]
[1749308903535,0.02843761,105640.0,105630.0,1.29934797]
[1749308903748,0.03790372,105640.0,105630.0,1.29934797]
[1749308904408,0.03790372,105640.0,105630.0,0.92106797]
[1749308904630,0.23979435,105640.0,105630.0,1.082288]
[1749308905070,0.23032833,105640.0,105630.0,0.693861]
[1749308905285,0.63437879,105640.0,105630.0,1.072821]
[1749308905497,0.63437879,105640.0,105630.0,0.69386099]
[1749308905716,0.97437879,105640.0,105630.0,1.07278099]
[1749308906153,0.97437879,105640.0,105630.0,1.06978099]
[1749308906364,0.57032833,105640.0,105630.0,1.06978099]
[1749308907951,0.57032833,105640.0,105630.0,1.25912113]
[1749308908372,0.57032833,105640.0,105630.0,1.25912112]
[1749308909011,0.57032833,105640.0,105630.0,1.06978098]
[1749308909860,0.97437879,105640.0,105630.0,1.06974098]
[1749308910071,0.99205227,105640.0,105630.0,1.06974098]
[1749308910282,0.97437879,105640.0,105630.0,0.69086098]
[1749308910497,1.0884517,105640.0,105630.0,1.06974098]
[1749308910705,1.0884517,105640.0,105630.0,1.06974097]
[1749308911108,1.07077827,105640.0,105630.0,0.00066097]
[1749308911347,1.09141354,105640.0,105630.0,0.37950097]
[1749308911566,1.07077827,105640.0,105630.0,0.77950097]
[1749308911782,1.09141382,105640.0,105630.0,0.77950097]
[1749308912213,1.07373925,105640.0,105630.0,0.77950097]
[1749308912423,1.08846361,105640.0,105630.0,0.77950097]
[1749308912635,1.07373925,105640.0,105630.0,0.77950097]
[1749308912852,1.09142459,105640.0,105630.0,0.77950097]
[1749308913287,1.08846361,105640.0,105630.0,0.77950097]
[1749308913493,1.09142459,105640.0,105630.0,0.77950097]
[1749308914147,1.09142803,105640.0,105630.0,0.77950097]
[1749308914610,1.07373924,105640.0,105630.0,0.37950097]
[1749308914894,1.09142802,105640.0,105630.0,0.37950096]
[1749308915108,1.08846705,105640.0,105630.0,0.77950096]
[1749308915319,1.09142802,105640.0,105630.0,0.77950096]
[1749308915540,1.07373924,105640.0,105630.0,0.77950096]
[1749308915751,1.09143617,105640.0,105630.0,0.77950096]
[1749308915968,1.0884752,105640.0,105630.0,0.77950096]
[1749308916210,0.68738571,105640.0,105630.0,0.77950096]
[1749308916455,1.09143617,105640.0,105630.0,0.77950096]
[1749308916940,1.09143841,105640.0,105630.0,0.77950096]
[1749308917255,1.07373924,105640.0,105630.0,0.77950096]
[1749308917469,0.66968878,105640.0,105630.0,0.77950096]
[1749308917680,1.08848646,105640.0,105630.0,0.77950096]
[1749308917868,1.09144741,105640.0,105630.0,0.77950096]
[1749308918094,1.08848638,105640.0,105630.0,0.37950096]
[1749308918306,1.0884861,105640.0,105630.0,0.37950096]
[1749308918516,1.09144699,105640.0,105630.0,0.77950096]
[1749308918990,1.09144882,105640.0,105630.0,0.77950096]
[1749308919221,1.09144875,105640.0,105630.0,0.77950096]
[1749308919418,1.07373916,105640.0,105630.0,0.77950096]
[1749308919631,1.09144827,105640.0,105630.0,0.77950096]
[1749308919848,1.07373907,105640.0,105630.0,0.77950096]
[1749308920059,1.07077827,105640.0,105630.0,0.77950096]
[1749308920264,0.63818862,105640.0,105630.0,0.77950096]
[1749308920474,0.6559038,105640.0,105630.0,1.06970096]
[1749308920678,0.6559038,105640.0,105630.0,1.06970095]
[1749308921160,0.65590315,105640.0,105630.0,1.06970095]
[1749308921374,0.65294241,105640.0,105630.0,1.06970095]
[1749308921605,0.63818864,105640.0,105630.0,1.06970095]
[1749308921856,1.07027827,105640.0,105630.0,1.06970095]
[1749308922062,1.09095438,105640.0,105630.0,1.06970095]
[1749308922485,0.68394306,105640.0,105630.0,1.06970095]
[1749308922730,1.09095541,105640.0,105630.0,1.06970095]
[1749308922936,1.09095542,105640.0,105630.0,1.06970095]
[1749308923144,1.09095541,105640.0,105630.0,1.06970095]
[1749308923355,1.0732392,105640.0,105630.0,1.06970095]
[1749308923570,1.09095634,105640.0,105630.0,1.06970095]
[1749308923978,1.09760026,105640.0,105630.0,1.06970095]
[1749308924183,1.09095623,105640.0,105630.0,1.06970095]
[1749308924710,1.07323921,105640.0,105630.0,1.06970095]
[1749308924919,1.0909562,105640.0,105630.0,1.06970094]
[1749308925750,1.09760281,105640.0,105630.0,1.06970094]
[1749308925967,1.0976028,105640.0,105630.0,1.06970094]
[1749308926207,1.07323921,105640.0,105630.0,1.06970094]
[1749308926419,1.0909582,105640.0,105630.0,1.06970094]
[1749308926631,1.09760282,105640.0,105630.0,1.06970094]
[1749308927296,1.0753582,105640.0,105630.0,1.06970094]
[1749308927969,1.07535916,105640.0,105630.0,1.06970094]
[1749308928181,1.05467827,105640.0,105630.0,1.06970094]
[1749308928390,1.07239795,105640.0,105630.0,1.06970094]
[1749308928839,1.07535883,105640.0,105630.0,1.06970094]
[1749308929300,1.06660617,105640.0,105630.0,1.06970094]
[1749308929524,1.05995883,105640.0,105630.0,1.06970094]
[1749308929742,1.06661272,105640.0,105630.0,1.06970094]
[1749308929978,1.05996539,105640.0,105630.0,1.06970094]
[1749308930251,1.03927827,105640.0,105630.0,1.06970094]
[1749308930470,1.05700451,105640.0,105630.0,1.06970094]
[1749308930709,1.06661273,105640.0,105630.0,1.06970094]
[1749308931136,1.09821273,105640.0,105630.0,1.06970094]
[1749308931353,1.08860599,105640.0,105630.0,1.06970094]
[1749308931563,1.09525388,105640.0,105630.0,1.06970094]
[1749308931776,1.08048704,105640.0,105630.0,1.06970094]
[1749308931990,1.09525388,105640.0,105630.0,1.06970094]
[1749308932202,1.09821476,105640.0,105630.0,1.06970093]
[1749308932416,1.08048704,105640.0,105630.0,1.06970093]
[1749308932651,1.09822149,105640.0,105630.0,1.06970093]
[1749308933082,1.09712149,105640.0,105630.0,1.06970093]
[1749308933300,1.07938956,105640.0,105630.0,1.06970093]
[1749308933511,1.09712405,105640.0,105630.0,1.06970093]
[1749308933734,1.06438959,105640.0,105630.0,1.06970093]
[1749308933996,1.0821241,105640.0,105630.0,1.06970093]
[1749308934832,1.07917818,105640.0,105630.0,1.06970093]
[1749308935058,1.06439368,105640.0,105630.0,1.06970093]
[1749308935271,1.09713907,105640.0,105630.0,1.06970093]
[1749308935688,1.07939368,105640.0,105630.0,1.06970093]
[1749308935908,1.09714004,105640.0,105630.0,1.06970093]
[1749308936331,1.09048552,105640.0,105630.0,1.06970093]
[1749308936549,1.09714466,105640.0,105630.0,1.06970093]
[1749308936765,1.09418378,105640.0,105630.0,1.06970093]
[1749308936983,1.0875277,105640.0,105630.0,1.06970093]
[1749308937198,1.09714465,105640.0,105630.0,1.06970093]
[1749308937646,1.08752773,105640.0,105630.0,1.06970093]
[1749308937938,1.08214594,105640.0,105630.0,1.06970093]
[1749308938156,1.07252866,105640.0,105630.0,1.06970093]
[1749308938371,1.05773916,105640.0,105630.0,1.06970093]
[1749308938578,1.07918505,105640.0,105630.0,1.06970093]
[1749308938791,1.07548955,105640.0,105630.0,1.06970093]
[1749308939007,1.08214594,105640.0,105630.0,1.06970093]
[1749308939452,1.08214571,105640.0,105630.0,1.06970093]
[1749308939681,1.07548948,105640.0,105630.0,1.06970093]
[1749308939900,1.04889855,105640.0,105630.0,1.06970093]
[1749308940120,1.06665719,105640.0,105630.0,1.06970093]
[1749308940344,1.06665719,105640.0,105630.0,1.06970092]
[1749308940775,1.08275745,105640.0,105630.0,1.06918092]
[1749308941003,1.09805745,105640.0,105630.0,1.06918092]
[1749308941258,1.07979656,105640.0,105630.0,1.06918092]
[1749308941491,1.06499862,105640.0,105630.0,1.06918092]
[1749308941763,1.08275756,105640.0,105630.0,1.06918092]
[1749308941983,1.06203783,105640.0,105630.0,1.06918092]
[1749308942217,0.56620762,105640.0,105630.0,1.26798806]
[1749308942438,0.56620761,105640.0,105630.0,1.30965497]
[1749308942672,0.55954691,105640.0,105630.0,1.31912179]
[1749308942884,0.56620593,105640.0,105630.0,1.31912179]
[1749308943164,0.55673972,105640.0,105630.0,1.10138092]
[1749308943397,0.54711988,105640.0,105630.0,1.10138092]
[1749308943624,0.55674134,105640.0,105630.0,1.10138091]
[1749308944182,0.55378064,105640.0,105630.0,1.10138091]
[1749308944423,0.55674135,105640.0,105630.0,1.10138091]
[1749308944630,0.53602177,105640.0,105630.0,1.30965478]
[1749308944849,0.55378064,105640.0,105630.0,1.30965478]
[1749308945088,0.55378066,105640.0,105630.0,1.30965496]
[1749308945306,0.52936222,105640.0,105630.0,1.30965496]
[1749308945521,0.55378067,105640.0,105630.0,1.30965496]
[1749308945743,0.55378067,105640.0,105630.0,1.31912178]
[1749308945955,0.55377362,105640.0,105630.0,1.31912178]
[1749308946420,0.55377362,105640.0,105630.0,1.11084791]
[1749308946626,0.55377498,105640.0,105630.0,1.11084791]
[1749308946863,0.53602024,105640.0,105630.0,1.11084791]
[1749308947076,0.55377498,105640.0,105630.0,1.30965496]
[1749308947287,0.55377498,105640.0,105630.0,1.31912178]
[1749308948164,0.55377498,105640.0,105630.0,1.32858851]
[1749308948378,0.54711696,105640.0,105630.0,1.32858851]
[1749308948591,0.39565708,105640.0,105630.0,1.33805453]
[1749308948806,0.37790336,105640.0,105630.0,1.33805453]
[1749308949028,0.59444519,105640.0,105630.0,1.3380547]
[1749308949700,0.3956574,105640.0,105630.0,1.33805424]
[1749308949913,0.39564975,105640.0,105630.0,1.33805424]
[1749308950131,0.3779039,105640.0,105630.0,1.33805424]
[1749308950351,0.38618357,105640.0,105630.0,1.32858742]
[1749308950574,0.39564959,105640.0,105630.0,1.3380538]
[1749308951294,0.39564955,105640.0,105630.0,1.3380538]
[1749308951945,0.39861014,105640.0,105630.0,1.32858742]
[1749308952168,0.39564958,105640.0,105630.0,1.3380538]
[1749308952506,0.39564947,105640.0,105630.0,1.3380538]
[1749308952948,0.39860631,105640.0,105630.0,1.3380538]
[1749308953163,0.39564583,105640.0,105630.0,1.3380538]
[1749308953370,0.58496723,105640.0,105630.0,1.32858742]
[1749308953623,0.56722612,105640.0,105630.0,1.31912096]
[1749308953835,0.57550139,105640.0,105630.0,1.30965441]
[1749308955122,0.57549979,105640.0,105630.0,1.31912096]
[1749308955778,0.57549975,105640.0,105630.0,1.32858742]
[1749308956217,0.35777947,105640.0,105630.0,1.74210426]
[1749308956441,0.02843635,105640.0,105630.0,1.74210425]
[1749308956865,0.02843635,105640.0,105630.0,1.33805379]
[1749308957096,0.03790219,105640.0,105630.0,1.33805379]
[1749308957755,0.03790219,105640.0,105630.0,1.34105379]
[1749308958416,0.02843635,105640.0,105630.0,1.34105379]
[1749308959713,0.01897069,105640.0,105630.0,1.34105379]
[1749308959922,0.03897069,105640.0,105630.0,1.34105379]
[1749308960130,0.0295053,105640.0,105630.0,1.34105379]
[1749308960584,0.02004,105640.0,105630.0,1.34105379]
[1749308961044,0.0295053,105640.0,105630.0,1.43745327]
[1749308961247,0.02004,105640.0,105630.0,1.43745327]
[1749308961465,0.02849755,105640.0,105630.0,1.43745326]
[1749308961685,0.02849755,105640.0,105630.0,1.84150372]
[1749308961910,0.01903225,105640.0,105630.0,1.84150372]
[1749308967033,0.02849755,105640.0,105630.0,1.84150372]
[1749308967241,0.01903225,105640.0,105630.0,1.84150372]
[1749308967451,0.01903225,105640.0,105630.0,1.84150371]
[1749308967872,0.02849755,105640.0,105630.0,2.34000371]
[1749308968095,0.03796303,105640.0,105630.0,2.34000371]
[1749308968343,0.03796303,105640.0,105630.0,1.93595325]
[1749308968628,0.236751,105640.0,105630.0,1.92648687]
[1749308968877,0.05689471,105640.0,105630.0,1.91702024]
[1749308971325,0.04742878,105640.0,105630.0,1.91702024]
[1749308972009,0.05689471,105640.0,105630.0,1.91598024]
[1749308973854,0.05689471,105640.0,105630.0,1.41748024]
[1749308974546,0.06636073,105640.0,105630.0,1.28848084]
[1749308974982,0.06636154,105640.0,105630.0,1.28848084]
[1749308975397,0.06636154,105640.0,105630.0,1.28848083]
[1749308975851,0.24621828,105640.0,105630.0,1.27901437]
[1749308976059,0.24621828,105640.0,105630.0,1.28848092]
[1749308976354,0.24621828,105640.0,105630.0,1.29794738]
[1749308977195,0.26141828,105640.0,105630.0,0.90213437]
[1749308977415,0.26969284,105640.0,105630.0,1.27901491]
[1749308977630,0.26969284,105640.0,105630.0,1.28848155]
[1749308977841,0.25195253,105640.0,105630.0,1.28848155]
[1749308978069,0.26969286,105640.0,105630.0,1.28848155]
[1749308978306,0.25195253,105640.0,105630.0,1.28848155]
[1749308978521,0.26969286,105640.0,105630.0,1.28848155]
[1749308978762,0.06517064,105640.0,105630.0,1.30741448]
[1749308979435,0.06517329,105640.0,105630.0,1.30741448]
[1749308980100,0.04743031,105640.0,105630.0,1.30741448]
[1749308980310,0.06517329,105640.0,105630.0,1.30741448]
[1749308981235,0.23675253,105640.0,105630.0,0.91160155]
[1749308981465,0.27069551,105640.0,105630.0,1.2979481]
[1749308981908,0.27069551,105640.0,105630.0,1.30741456]
[1749308982147,0.07190718,105640.0,105630.0,1.30741394]
[1749308982385,0.05570718,105640.0,105630.0,1.30741394]
[1749308982806,0.05571028,105640.0,105630.0,1.30741394]
[1749308984551,0.05571535,105640.0,105630.0,1.30741394]
[1749308984769,0.06518146,105640.0,105630.0,1.30741394]
[1749308985955,0.05571535,105640.0,105630.0,1.30741394]
[1749308986169,0.05571551,105640.0,105630.0,1.30741394]
[1749308986377,0.03796384,105640.0,105630.0,1.30741394]
[1749308986579,0.05571515,105640.0,105630.0,1.30741394]
[1749308986996,0.05571514,105640.0,105630.0,1.30741394]
[1749308988152,0.05571513,105640.0,105630.0,1.30741394]
[1749308988690,0.03796384,105640.0,105630.0,1.30741394]
[1749308988911,0.05571513,105640.0,105630.0,1.30741394]
[1749308989537,0.06518115,105640.0,105630.0,1.30741394]
[1749308989957,0.06518115,105640.0,105630.0,1.55297394]
[1749308990389,0.0651813,105640.0,105630.0,1.55297394]
[1749308991358,0.06518092,105640.0,105630.0,1.55297394]
[1749308991621,0.03796384,105640.0,105630.0,1.55297394]
[1749308991835,0.05571491,105640.0,105630.0,1.55297394]
[1749308992050,0.03796384,105640.0,105630.0,1.55297394]
[1749308992269,0.06518093,105640.0,105630.0,1.55297394]
[1749308993102,0.04742986,105640.0,105630.0,1.55297394]
[1749308993263,0.05571586,105640.0,105630.0,1.55297394]
[1749308993459,0.04742923,105640.0,105630.0,1.55297394]
[1749308993673,0.06518125,105640.0,105630.0,1.55297394]
[1749308994864,0.06518156,105640.0,105630.0,1.55297394]
[1749308995518,0.06518155,105640.0,105630.0,1.55297394]
[1749308995967,0.06518155,105640.0,105630.0,1.95654393]
[1749308996289,0.06518393,105640.0,105630.0,1.95654393]
[1749308996820,0.04742923,105640.0,105630.0,1.95654393]
[1749308997380,0.06518393,105640.0,105630.0,1.95654393]
[1749308998438,0.04742923,105640.0,105630.0,1.95654393]
[1749308998714,0.06518882,105640.0,105630.0,1.95654393]
[1749308998950,0.67338114,105640.0,105630.0,1.51506791]
[1749308999236,0.26981164,105640.0,105630.0,1.53400137]
[1749308999447,0.25451164,105640.0,105630.0,1.54346792]
[1749308999881,0.25451169,105640.0,105630.0,1.54346792]
[1749309000098,0.25451133,105640.0,105630.0,1.54346792]
[1749309000315,0.25451124,105640.0,105630.0,1.54346791]
[1749309000526,0.25451168,105640.0,105630.0,1.54346791]
[1749309000746,0.25451165,105640.0,105630.0,1.54346791]
[1749309001174,0.25451169,105640.0,105630.0,1.53400136]
[1749309001602,0.23675145,105640.0,105630.0,1.53400136]
[1749309002236,0.25450963,105640.0,105630.0,1.53400136]
[1749309002456,0.25450961,105640.0,105630.0,1.53400136]
[1749309003618,0.23675145,105640.0,105630.0,1.53400136]
[1749309003825,0.25450833,105640.0,105630.0,1.52453472]
[1749309004036,1.39686038,105640.0,105630.0,1.02766085]
[1749309004280,1.0177072,105640.0,105630.0,1.31666085]
[1749309004485,1.01770838,105640.0,105630.0,1.31666085]
[1749309004684,1.01770842,105640.0,105630.0,1.31666085]
[1749309005113,1.01104896,105640.0,105630.0,1.31566085]
[1749309005327,0.99994989,105640.0,105630.0,1.31366085]
[1749309005546,1.01770854,105640.0,105630.0,1.31366085]
[1749309005751,0.99994988,105640.0,105630.0,1.31378085]
[1749309005964,1.01770901,105640.0,105630.0,1.31378085]
[1749309006376,1.01770886,105640.0,105630.0,1.31378085]
[1749309006587,1.01104939,105640.0,105630.0,1.31378085]
[1749309006789,1.01104883,105640.0,105630.0,1.31378085]
[1749309007000,1.01104019,105640.0,105630.0,1.31378085]
[1749309008044,1.01104019,105640.0,105630.0,0.93642085]
[1749309008261,1.11409631,105640.0,105630.0,0.93642085]
[1749309008481,1.09634621,105640.0,105630.0,1.31366085]
[1749309008693,1.11409719,105640.0,105630.0,1.31366085]
[1749309008904,1.10744065,105640.0,105630.0,1.31366085]
[1749309009112,1.11409725,105640.0,105630.0,1.31366085]
[1749309009547,1.51766724,105640.0,105630.0,0.69086085]
[1749309009774,1.51765603,105640.0,105630.0,0.77926085]
[1749309009976,1.54036178,105640.0,105630.0,1.06806085]
[1749309010191,1.51596561,105640.0,105630.0,1.06806085]
[1749309010448,1.53370667,105640.0,105630.0,1.06806085]
[1749309010664,1.53370672,105640.0,105630.0,1.06806085]
[1749309010868,1.54035963,105640.0,105630.0,1.06806085]
[1749309011523,1.54034194,105640.0,105630.0,1.06806085]
[1749309011730,1.54033531,105640.0,105630.0,1.06806085]
[1749309011942,1.53368889,105640.0,105630.0,0.66806085]
[1749309012150,1.53368888,105640.0,105630.0,0.66806085]
[1749309012361,1.54033458,105640.0,105630.0,1.06806085]
[1749309012568,1.5403332,105640.0,105630.0,1.06806085]
[1749309012786,1.54033277,105640.0,105630.0,1.06806085]
[1749309012998,1.54033289,105640.0,105630.0,0.57978084]
[1749309013207,1.13699132,105640.0,105630.0,0.57978084]
[1749309013656,1.13699164,105640.0,105630.0,0.57978084]
[1749309013864,5.24407275,105640.0,105630.0,0.57974084]
[1749309014076,5.2440728,105640.0,105630.0,0.00066084]
[1749309014348,5.26179498,105640.0,105630.0,0.28954084]
[1749309014767,5.26179498,105640.0,105630.0,0.00066084]
[1749309014986,5.2551376,105640.0,105630.0,0.28950084]
[1749309015213,5.26177906,105640.0,105630.0,0.28950084]
[1749309015840,5.66557747,105640.0,105630.0,0.28950084]
[1749309016044,5.64786691,105640.0,105630.0,0.28950084]
[1749309016272,5.66757597,105640.0,105630.0,0.28950084]
[1749309016476,5.6675754,105640.0,105630.0,0.28950084]
[1749309016687,5.66293451,105640.0,105630.0,0.28950084]
[1749309016921,5.24806793,105640.0,105630.0,0.28950084]
[1749309017129,5.26577699,105640.0,105630.0,0.28950084]
[1749309017339,5.2591361,105640.0,105630.0,0.28950084]
[1749309017556,5.26577699,105640.0,105630.0,0.28950084]
[1749309018255,5.2657687,105640.0,105630.0,0.28950084]
[1749309019081,5.24142704,105640.0,105630.0,0.28950084]
[1749309019294,5.26576751,105640.0,105630.0,0.28950084]
[1749309019510,5.24806535,105640.0,105630.0,0.28950084]
[1749309019724,5.26576751,105640.0,105630.0,0.28950084]
[1749309019930,5.24142704,105640.0,105630.0,0.28950084]
[1749309020138,5.24806535,105640.0,105630.0,0.28950084]
[1749309020566,5.26576751,105640.0,105630.0,0.28950084]
[1749309020781,5.24806535,105640.0,105630.0,0.28950084]
[1749309020989,5.24142704,105640.0,105630.0,0.28950084]
[1749309021423,5.26576751,105640.0,105630.0,0.28950084]
[1749309021882,5.26576751,105640.0,105630.0,0.00066084]
[1749309022090,5.24142704,105640.0,105630.0,0.28934084]
[1749309022300,5.24806519,105640.0,105630.0,0.28934084]
[1749309022514,5.26576693,105640.0,105630.0,0.28934084]
[1749309023382,5.26572163,105640.0,105630.0,0.28934084]
[1749309024045,5.70687933,105640.0,105630.0,0.28938084]
[1749309024257,5.70688005,105640.0,105630.0,0.28938084]
[1749309024482,5.69784482,105640.0,105630.0,0.28950084]
[1749309024699,5.71238567,105640.0,105630.0,0.00066084]
[1749309024924,5.71238617,105640.0,105630.0,0.00066084]
[1749309025138,5.74084817,105640.0,105630.0,0.00066084]
[1749309025357,5.81954297,105640.0,105630.0,0.00066084]
[1749309025830,5.83723611,105640.0,105630.0,0.00066084]
[1749309026039,5.89143698,105640.0,105630.0,0.00066084]
[1749309026697,6.18023698,105640.0,105630.0,0.00066084]
[1749309026908,6.26600798,105640.0,105630.0,0.00066084]
[1749309027124,6.26600798,105640.0,105630.0,0.00166084]
[1749309027125,6.29768364,105640.0,105630.0,0.00166084]
[1749309027335,6.18801121,105640.0,105630.0,0.00166084]
[1749309027539,6.1880113,105640.0,105630.0,0.00166084]
[1749309027981,6.19907013,105640.0,105630.0,0.00166084]
[1749309028189,6.20570542,105640.0,105630.0,0.00166084]
[1749309028428,6.19907013,105640.0,105630.0,0.00183557]
[1749309028646,6.27378346,105640.0,105630.0,0.00183557]
[1749309028873,6.33036804,105640.0,105630.0,0.00183557]
[1749309029093,6.32373284,105640.0,105630.0,0.00183557]
[1749309029337,6.32373287,105640.0,105630.0,0.00183557]
[1749309029550,6.22733339,105640.0,105630.0,0.00183557]
[1749309029819,6.23397028,105640.0,105630.0,0.00183557]
[1749309030022,6.23396557,105640.0,105630.0,0.00183557]
[1749309030661,6.22732868,105640.0,105630.0,0.00183557]
[1749309030884,6.15968263,105640.0,105630.0,0.00183557]
[1749309031088,6.25608211,105640.0,105630.0,0.00183557]
[1749309031298,6.24944522,105640.0,105630.0,0.00183557]
[1749309031507,6.2737805,105640.0,105630.0,0.00183557]
[1749309031719,0.01893697,105610.0,105600.0,0.45432362]
[1749309031944,5.20581386,105610.0,105600.0,0.36588362]
[1749309032158,4.80865234,105610.0,105600.0,0.36588362]
[1749309032371,5.20581386,105610.0,105600.0,0.65603919]
[1749309032585,5.22350607,105610.0,105600.0,0.65603919]
[1749309032796,5.21244844,105610.0,105600.0,0.65703919]
[1749309033008,5.20581386,105610.0,105600.0,0.36683919]
[1749309033228,5.23032545,105610.0,105600.0,0.36683919]
[1749309033462,5.23032545,105610.0,105600.0,0.07751919]
[1749309033676,5.23996397,105610.0,105600.0,0.36687919]
[1749309033882,5.23995043,105610.0,105600.0,0.36687919]
[1749309034299,5.22225813,105610.0,105600.0,0.36659357]
[1749309034512,5.23995043,105610.0,105600.0,0.36559357]
[1749309034745,5.21821582,105610.0,105600.0,0.36559357]
[1749309034969,5.22485043,105610.0,105600.0,0.29019557]
[1749309035624,5.22585043,105610.0,105600.0,0.29019557]
[1749309036147,5.20945043,105610.0,105600.0,0.29019557]
[1749309036581,5.20281582,105610.0,105600.0,0.29015557]
[1749309036794,5.20945043,105610.0,105600.0,0.29015557]
[1749309037003,5.19175813,105610.0,105600.0,0.29015557]
[1749309037224,5.20945556,105610.0,105600.0,0.29015557]
[1749309037454,5.20282095,105610.0,105600.0,0.29015557]
[1749309037661,5.20945747,105610.0,105600.0,0.29015557]
[1749309037886,5.19176005,105610.0,105600.0,0.29015557]
[1749309038099,5.20945747,105610.0,105600.0,0.29015557]
[1749309039214,5.20945747,105610.0,105600.0,0.69015557]
[1749309039429,5.19176313,105610.0,105600.0,0.69015557]
[1749309039640,5.2094687,105610.0,105600.0,0.69015557]
[1749309039879,5.20946821,105610.0,105600.0,0.69015557]
[1749309040089,4.8054988,105610.0,105600.0,0.69015557]
[1749309040297,5.20946835,105610.0,105600.0,0.29015557]
[1749309040719,5.20946919,105610.0,105600.0,0.29015557]
[1749309041177,4.78115397,105610.0,105600.0,0.29015557]
[1749309041395,0.68069573,105610.0,105600.0,0.5113495]
[1749309041614,0.64688262,105610.0,105600.0,0.5113495]
[1749309041823,0.64688262,105610.0,105600.0,0.52081919]
[1749309041824,1.05085217,105610.0,105600.0,0.52081919]
[1749309042047,0.64688262,105610.0,105600.0,0.52081919]
[1749309042258,0.66259014,105610.0,105600.0,0.5302887]
[1749309042497,0.66259014,105610.0,105600.0,0.52081919]
[1749309042704,0.56619072,105610.0,105600.0,0.52081919]
[1749309042907,0.5661908,105610.0,105600.0,0.52081919]
[1749309043125,0.54848314,105610.0,105600.0,0.52181919]
[1749309043348,0.56619411,105610.0,105600.0,0.52181919]
[1749309044414,0.56619411,105610.0,105600.0,0.53128879]
[1749309044628,0.53901452,105610.0,105600.0,0.53128879]
[1749309044841,0.53901452,105610.0,105600.0,0.32295557]
[1749309045122,0.55672882,105610.0,105600.0,0.32295557]
[1749309045319,0.96055137,105610.0,105600.0,0.32295557]
[1749309045527,0.9605518,105610.0,105600.0,0.32295557]
[1749309046156,0.9605551,105610.0,105600.0,0.32295557]
[1749309046995,0.96055512,105610.0,105600.0,0.32295557]
[1749309047412,1.0569546,105610.0,105600.0,0.32295557]
[1749309047620,1.06360001,105610.0,105600.0,0.3226772]
[1749309047831,1.06361229,105610.0,105600.0,0.3226772]
[1749309048031,1.04588422,105610.0,105600.0,0.3226772]
[1749309048243,1.05696431,105610.0,105600.0,0.3226772]
[1749309048452,1.05696432,105610.0,105600.0,0.3226772]
[1749309048662,1.06361241,105610.0,105600.0,0.3226772]
[1749309048912,1.04588426,105610.0,105600.0,0.3226772]
[1749309049096,1.05696371,105610.0,105600.0,0.3226772]
[1749309049300,1.06361152,105610.0,105600.0,0.3226772]
[1749309049718,1.03923621,105610.0,105600.0,0.3226772]
[1749309049928,1.0636123,105610.0,105600.0,0.3226772]
[1749309050165,1.06365222,105610.0,105600.0,0.3226772]
[1749309050369,1.05700424,105610.0,105600.0,0.3226772]
[1749309050582,1.05700435,105610.0,105600.0,0.3226772]
[1749309051469,1.03927621,105610.0,105600.0,0.3226772]
[1749309051882,1.06365208,105610.0,105600.0,0.3226772]
[1749309052088,1.06365486,105610.0,105600.0,0.3226772]
[1749309052311,1.04592493,105610.0,105600.0,0.3226772]
[1749309052523,1.06365486,105610.0,105600.0,0.3226772]
[1749309052760,1.04592493,105610.0,105600.0,0.3226772]
[1749309052970,1.05257365,105610.0,105600.0,0.3226772]
[1749309053176,1.07031737,105610.0,105600.0,0.3226772]
[1749309053379,1.06366489,105610.0,105600.0,0.3226772]
[1749309053592,1.04592493,105610.0,105600.0,0.3226772]
[1749309053803,1.07031768,105610.0,105600.0,0.3226772]
[1749309054017,1.05257751,105610.0,105600.0,0.3226772]
[1749309054232,1.04592493,105610.0,105600.0,0.3226772]
[1749309054438,1.07031774,105610.0,105600.0,0.3226772]
[1749309054637,1.05257751,105610.0,105600.0,0.32267721]
[1749309054887,1.06366501,105610.0,105600.0,0.32267721]
[1749309055093,1.07031855,105610.0,105600.0,0.32267721]
[1749309055505,1.07031892,105610.0,105600.0,0.32267721]
[1749309055712,1.06366602,105610.0,105600.0,0.32267721]
[1749309055913,1.05257783,105610.0,105600.0,0.32267721]
[1749309056130,1.07031892,105610.0,105600.0,0.32267721]
[1749309056769,1.06366602,105610.0,105600.0,0.32267721]
[1749309056981,1.07031892,105610.0,105600.0,0.32267721]
[1749309057186,1.06366602,105610.0,105600.0,0.32267721]
[1749309057407,1.07031892,105610.0,105600.0,0.32267721]
[1749309057614,1.05923073,105610.0,105600.0,0.32267721]
[1749309057830,1.05257783,105610.0,105600.0,0.32267721]
[1749309058042,1.07697182,105610.0,105600.0,0.32267721]
[1749309058459,1.07697215,105610.0,105600.0,0.32267721]
[1749309058672,1.05257783,105610.0,105600.0,0.32267721]
[1749309058883,1.07697303,105610.0,105600.0,0.32267721]
[1749309059526,1.05923106,105610.0,105600.0,0.61287721]
[1749309059738,1.07697303,105610.0,105600.0,0.61287721]
[1749309060199,1.07697303,105610.0,105600.0,0.66951721]
[1749309060458,1.05257783,105610.0,105600.0,0.66951721]
[1749309060674,1.09303377,105610.0,105600.0,0.66951721]
[1749309060883,1.08194452,105610.0,105600.0,0.66951721]
[1749309061087,1.09968731,105610.0,105600.0,0.38031721]
[1749309061314,1.09303377,105610.0,105600.0,0.66947721]
[1749309061547,1.09303377,105610.0,105600.0,0.29175721]
[1749309061805,1.13078664,105610.0,105600.0,0.66947721]
[1749309062017,1.13078726,105610.0,105600.0,0.66947721]
[1749309062226,1.13078728,105610.0,105600.0,0.29175721]
[1749309062437,5.23784697,105610.0,105600.0,0.29175722]
[1749309062668,5.2555903,105610.0,105600.0,0.58091722]
[1749309062875,5.2489366,105610.0,105600.0,0.57991722]
[1749309063092,5.25659037,105610.0,105600.0,0.57991722]
[1749309063305,5.25759037,105610.0,105600.0,0.29075722]
[1749309063514,5.25759037,105610.0,105600.0,0.58007722]
[1749309063721,5.25093661,105610.0,105600.0,0.58007722]
[1749309063938,5.25759071,105610.0,105600.0,0.58007722]
[1749309064167,5.25759454,105610.0,105600.0,0.58007722]